bitfinex-derivatives/quotes_ETHF0:USTF0_20250926
["timestamp","ask_amount","ask_price","bid_price","bid_amount"]
[1758873887186,1.1633,3937.0,3936.9,41.45609]
[1758873888883,0.7898,3937.0,3936.9,41.45609]
[1758873889887,1.24657,3937.0,3936.9,41.45609]
[1758873890187,0.7898,3937.0,3936.9,41.45609]
[1758873890792,0.932,3937.4,3937.3,0.83773]
[1758873891088,0.932,3937.4,3937.3,1.47623]
[1758873891286,1.38873,3937.4,3937.3,1.47623]
[1758873892084,1.38873,3937.4,3937.3,1.0195]
[1758873892388,1.77693,3937.4,3937.3,1.0195]
[1758873893092,1.77693,3937.4,3937.3,1.47624]
[1758873895787,1.77693,3937.4,3937.3,1.09524]
[1758873895994,1.77693,3937.4,3937.3,0.71974]
[1758873896491,1.77693,3937.4,3937.3,0.263]
[1758873896690,0.45677,3937.1,3937.0,0.45677]
[1758873896891,1.77697,3937.1,3937.0,40.70227]
[1758873898292,1.01527,3937.1,3937.0,40.70227]
[1758873898494,3.4366,3938.0,3937.9,1.58097]
[1758873898686,3.8101,3938.0,3937.9,1.47617]
[1758873898994,4.7568,3938.0,3937.9,1.47617]
[1758873899387,4.7568,3938.0,3937.9,0.7565]
[1758873899591,1.549,3937.5,3937.4,1.21323]
[1758873899791,1.549,3937.5,3937.4,41.08323]
[1758873901594,1.549,3937.5,3937.4,1.21323]
[1758873901800,1.549,3937.5,3937.4,41.08123]
[1758873902787,0.0253,3938.1,3938.0,0.45666]
[1758873902991,0.0253,3938.1,3938.0,1.82766]
[1758873903997,0.5969,3938.7,3938.6,1.21129]
[1758873904301,1.2188,3939.0,3938.9,1.21125]
[1758873904502,1.2188,3939.0,3938.9,41.43155]
[1758873904801,0.3819,3939.4,3939.3,1.56391]
[1758873904989,0.225,3939.5,3939.3,1.82691]
[1758873905198,0.7631,3939.5,3939.4,1.1074]
[1758873905506,3.9651,3939.9,3939.8,1.21305]
[1758873905695,0.7573,3939.9,3939.8,1.47605]
[1758873905899,1.2954,3939.9,3939.8,1.47605]
[1758873906598,1.2954,3939.9,3939.8,1.68090083]
[1758873906798,1.2954,3939.9,3939.8,1.47605]
[1758873909093,1.2954,3939.9,3939.8,1.82685]
[1758873909094,0.92,3939.9,3939.8,1.82685]
[1758873910208,0.92,3939.9,3939.8,1.47605]
[1758873910503,0.92,3939.9,3939.8,0.7566]
[1758873910804,0.92,3939.9,3939.8,40.6126]
[1758873911400,0.92,3939.9,3939.8,41.06905]
[1758873911801,1.37644,3939.9,3939.8,41.06905]
[1758873912713,0.5381,3939.4,3938.8,0.3508]
[1758873912903,1.7519,3939.4,3939.3,0.81971]
[1758873913102,1.7519,3939.4,3939.3,1.08271]
[1758873913902,1.7519,3939.4,3939.3,0.6262]
[1758873914905,0.92,3939.4,3939.3,1.47611]
[1758873915109,0.2149,3939.5,3939.4,0.4565]
[1758873915410,0.753,3939.5,3939.4,1.5639]
[1758873915608,3.8147,3940.0,3939.9,1.21304]
[1758873915909,3.8147,3940.0,3939.9,1.82684]
[1758873916312,1.145,3940.0,3939.9,1.82684]
[1758873916515,4.1278,3940.4,3940.3,1.56379]
[1758873916813,3.7459,3940.4,3940.3,1.82679]
[1758873918106,4.1278,3940.4,3940.3,1.82679]
[1758873919314,0.92,3940.4,3940.3,1.82679]
[1758873919520,0.5381,3940.4,3940.3,1.82679]
[1758873920019,0.5381,3940.4,3940.3,1.56379]
[1758873920213,0.5381,3940.4,3940.3,41.40979]
[1758873922008,0.5381,3940.4,3940.3,41.05899]
[1758873924019,0.5381,3940.4,3940.3,41.40979]
[1758873925615,0.92,3940.4,3940.3,41.40379]
[1758873925917,0.92,3940.4,3940.3,41.05299]
[1758873926120,0.92,3940.4,3940.3,41.40379]
[1758873927622,1.75178,3940.4,3940.3,41.05199]
[1758873928022,1.2954,3940.4,3940.3,41.05199]
[1758873928519,1.2954,3940.4,3940.3,1.21299]
[1758873928715,1.2954,3940.4,3940.3,41.05099]
[1758873929020,0.92,3940.4,3940.3,41.40179]
[1758873929916,0.5381,3940.4,3940.3,41.40179]
[1758873930119,0.69651,3941.0,3940.9,1.56372]
[1758873930120,0.6221,3941.0,3940.9,1.56372]
[1758873930318,0.2402,3941.0,3940.9,1.82672]
[1758873930622,0.8141,3941.0,3940.9,1.82672]
[1758873931219,1.1946,3941.0,3940.9,1.82672]
[1758873931419,1.1946,3941.0,3940.9,1.47592]
[1758873932118,1.1693,3941.0,3940.9,1.47592]
[1758873932512,1.1693,3941.0,3940.0,4.39583]
[1758873932513,0.7732,3940.1,3940.0,4.39583]
[1758873932710,1.3471,3940.1,3940.0,44.23283]
[1758873933923,0.9544,3940.1,3940.0,44.23283]
[1758873934215,0.2314,3940.5,3940.4,1.18798]
[1758873934216,0.6119,3940.5,3940.4,1.18798]
[1758873934420,0.2314,3940.5,3940.4,1.78468]
[1758873934616,1.1858,3940.5,3940.4,1.45098]
[1758873936322,2.03487,3940.5,3940.4,1.45098]
[1758873937124,2.03487,3940.5,3940.4,41.02298]
[1758873938224,1.5785,3940.5,3940.4,41.02298]
[1758873938818,1.1858,3940.5,3940.4,41.35668]
[1758873939424,1.64217,3940.5,3940.4,41.02298]
[1758873940320,1.1858,3940.5,3940.4,41.02298]
[1758873941126,1.1858,3940.5,3940.4,41.35668]
[1758873942328,1.64217,3940.5,3940.4,41.35668]
[1758873942525,1.64217,3940.5,3940.4,41.02298]
[1758873942719,1.80352,3940.1,3940.0,0.45642]
[1758873942920,0.9544,3939.7,3939.6,4.39587]
[1758873943121,0.9544,3939.7,3939.6,44.23087]
[1758873943320,0.5739,3939.7,3939.6,44.56457]
[1758873944823,1.80356,3939.7,3939.6,0.7316]
[1758873945029,1.8036,3939.4,3939.3,0.3655]
[1758873945325,0.5739,3939.7,3939.6,0.7316]
[1758873945531,1.41086,3939.7,3939.6,1.3283]
[1758873945720,1.80356,3939.7,3939.6,0.9946]
[1758873945925,1.3471,3939.7,3939.6,1.45107]
[1758873946424,1.80356,3939.7,3939.6,1.45107]
[1758873946830,1.80356,3939.7,3939.6,0.9946]
[1758873947921,1.80356,3939.7,3939.6,1.45107]
[1758873948632,1.80356,3939.7,3939.6,0.9946]
[1758873949034,1.80356,3939.7,3939.6,1.45107]
[1758873949531,1.80356,3939.7,3939.6,0.9946]
[1758873950130,1.80356,3939.7,3939.6,0.6285]
[1758873950928,5.01136,3939.7,3939.6,0.6285]
[1758873951126,0.3805,3939.1,3938.7,3.2078]
[1758873951332,1.14127,3939.4,3938.2,1.14157]
[1758873951333,0.45658,3938.7,3938.6,0.45659]
[1758873951631,1.3471,3938.7,3938.6,40.86013641]
[1758873951933,1.3471,3938.7,3938.6,1.38723641]
[1758873952137,1.80368,3938.7,3938.6,40.76964641]
[1758873952437,1.3471,3938.7,3938.6,41.22623641]
[1758873953136,1.80368,3938.7,3938.6,0.3655]
[1758873953435,1.80371,3938.4,3938.3,3.2078]
[1758873953637,1.80371,3938.4,3938.3,43.0478]
[1758873953936,1.80371,3938.4,3938.3,39.84]
[1758873954635,1.22984,3938.2,3938.1,0.45664]
[1758873954836,1.3471,3938.2,3938.1,40.29764]
[1758873955534,1.80374,3938.2,3938.1,39.841]
[1758873955940,2.03516,3938.0,3937.9,3.66447]
[1758873956124,2.03516,3938.0,3937.9,43.50747]
[1758873956328,1.5785,3938.0,3937.9,43.50747]
[1758873956935,1.5785,3938.0,3937.9,43.0508]
[1758873957135,1.5785,3938.0,3937.9,44.24107]
[1758873957530,2.03516,3938.0,3937.9,44.24107]
[1758873957930,2.03516,3938.0,3937.9,43.7844]
[1758873958340,2.03516,3938.0,3937.9,44.24107]
[1758873958924,2.03516,3938.0,3937.9,43.7844]
[1758873959834,2.03516,3938.0,3937.9,44.24107]
[1758873960031,2.03516,3938.0,3937.6,0.3337]
[1758873960032,0.45668,3937.8,3937.5,3.2078]
[1758873960229,1.40378,3937.8,3937.7,0.7316]
[1758873960633,0.9471,3937.8,3937.7,1.18829]
[1758873961034,1.40378,3937.8,3937.7,1.18829]
[1758873961236,0.0253,3938.4,3937.9,0.7515]
[1758873961435,1.04851,3938.4,3938.3,1.52242]
[1758873961731,1.04851,3938.4,3938.3,1.3288]
[1758873961940,1.39471,3938.4,3938.3,1.3288]
[1758873962330,3.2078,3938.9,3938.4,0.387]
[1758873962538,3.5793,3938.9,3938.8,1.0658]
[1758873962741,3.5793,3938.9,3938.8,1.3288]
[1758873962941,0.798,3939.0,3938.9,0.45655]
[1758873963142,4.23091,3939.3,3939.2,1.52232]
[1758873963438,4.1459,3939.3,3939.2,41.05902]
[1758873963740,0.5666,3939.3,3939.2,41.37332]
[1758873965930,0.7566,3939.5,3939.4,0.4565]
[1758873966134,0.5252,3939.5,3939.4,1.753]
[1758873967328,0.8816,3939.5,3939.4,1.753]
[1758873967533,1.103,3939.5,3939.4,1.4412]
[1758873968329,0.9069,3939.6,3939.5,1.48998]
[1758873968534,0.9069,3939.6,3939.5,1.17818]
[1758873968728,1.2779,3939.6,3939.5,1.17818]
[1758873969242,0.0253,3939.6,3939.5,1.53558]
[1758873971131,0.5252,3940.3,3940.2,1.4899]
[1758873971339,0.7584,3940.5,3940.4,1.17808]
[1758873971539,1.1148,3940.5,3940.4,1.44108]
[1758873971733,1.36205,3941.5,3940.9,1.17802]
[1758873971734,0.5896,3941.0,3940.9,1.17802]
[1758873971942,3.2078,3941.1,3941.0,1.48981]
[1758873972245,3.9352,3941.6,3941.5,1.17794]
[1758873972437,4.4604,3941.6,3941.5,1.44094]
[1758873973337,0.8816,3941.6,3941.5,1.44094]
[1758873973645,0.8816,3941.6,3941.5,1.75274]
[1758873974344,0.5252,3941.6,3941.5,1.95849787]
[1758873975238,0.8816,3941.6,3941.5,0.9847]
[1758873977548,0.8816,3941.6,3941.5,1.44095]
[1758873977742,1.2526,3941.6,3941.5,1.44095]
[1758873984351,0.3564,3940.8,3940.5,0.3118]
[1758873984549,0.2214,3941.0,3940.6,0.45636]
[1758873984550,1.2526,3940.7,3940.6,0.45636]
[1758873984748,1.2526,3940.7,3940.6,40.28436]
[1758873984955,0.5252,3940.7,3940.6,40.80350437]
[1758873985158,0.7466,3941.0,3940.9,1.17803]
[1758873985459,0.5252,3941.0,3940.9,4.95963]
[1758873986045,1.103,3941.0,3940.9,4.95963]
[1758873986448,1.103,3941.0,3940.9,4.64783]
[1758873989752,1.474,3941.0,3940.9,4.1915]
[1758873989948,1.474,3941.0,3940.9,4.64782]
[1758873990349,1.474,3941.0,3940.9,40.5487]
[1758873990750,1.93031,3941.0,3940.9,41.00502]
[1758873991353,1.93031,3941.0,3940.9,40.74302]
[1758873991555,1.93031,3941.0,3940.9,41.00502]
[1758873992352,1.474,3941.0,3940.9,41.00502]
[1758873993153,1.474,3941.0,3940.9,40.5487]
[1758873993154,1.93031,3941.0,3940.9,40.5487]
[1758873993549,1.57391,3941.0,3940.9,41.30042]
[1758873993750,1.20291,3941.0,3940.9,41.00502]
[1758873995655,1.20291,3941.0,3940.9,40.5487]
[1758873996048,0.45632,3940.9,3940.5,0.45637]
[1758873996257,1.35396,3940.7,3940.6,40.28436]
[1758873996657,0.8976,3940.7,3940.6,40.28436]
[1758873997156,1.35395,3940.7,3940.6,40.28436]
[1758873997356,0.8976,3940.7,3940.6,40.28436]
[1758873997553,0.5175,3940.7,3940.6,40.57976]
[1758873998063,0.3491,3940.2,3940.1,4.37932]
[1758873998358,1.2467,3940.2,3940.1,44.20732]
[1758873998658,1.7031,3940.2,3940.1,40.5431]
[1758873999757,1.7031,3940.2,3940.1,39.828]
[1758874000956,0.80552,3940.1,3940.0,0.3689]
[1758874001162,1.32302,3940.1,3940.0,40.5441]
[1758874001751,0.5175,3940.4,3940.0,40.5441]
[1758874001958,0.97388,3940.4,3940.3,1.0105]
[1758874002159,1.70308,3940.4,3940.3,0.9771]
[1758874003467,0.8666,3940.4,3940.3,1.72889]
[1758874003760,4.18166,3940.6,3940.5,1.0105]
[1758874003955,4.18166,3940.6,3940.5,0.9771]
[1758874003956,4.53076,3940.6,3940.5,0.9771]
[1758874004156,4.91086,3940.6,3940.5,0.9771]
[1758874005353,3.2078,3940.6,3940.5,1.72887]
[1758874005856,3.7253,3940.6,3940.5,1.72887]
[1758874006754,4.18166,3940.6,3940.5,1.2725]
[1758874006956,4.53076,3940.6,3940.5,0.9771]
[1758874007155,4.91086,3940.6,3940.5,0.9771]
[1758874008766,4.4545,3940.6,3940.5,0.9771]
[1758874008958,4.91086,3940.6,3940.5,0.9771]
[1758874009365,4.91086,3940.6,3940.5,1.43347]
[1758874009562,4.91086,3940.6,3940.5,0.9771]
[1758874011361,0.80553,3940.1,3940.0,1.17153]
[1758874011568,1.18563,3940.1,3940.0,40.5481]
[1758874011960,1.70313,3940.1,3940.0,40.5481]
[1758874012161,1.70313,3940.1,3940.0,41.00453]
[1758874012771,1.70313,3940.1,3940.0,39.833]
[1758874014764,1.35694,3940.5,3939.7,3.66425]
[1758874014765,0.45646,3939.8,3939.7,0.3462]
[1758874014968,1.18566,3939.8,3939.7,40.1792]
[1758874015171,1.18566,3939.8,3939.7,40.63566]
[1758874015369,0.8666,3939.8,3939.7,40.93106]
[1758874015670,0.5175,3939.8,3939.7,40.93106]
[1758874015870,0.5175,3939.8,3939.7,44.13886]
[1758874017371,0.97395,3939.8,3939.7,44.13886]
[1758874017974,0.5175,3939.8,3939.7,44.13886]
[1758874018380,0.97395,3939.8,3939.7,43.387]
[1758874019077,0.97395,3939.8,3939.7,43.84346]
[1758874019281,0.97395,3939.8,3939.7,43.387]
[1758874019576,0.97395,3939.8,3939.4,4.15392134]
[1758874019577,0.67248,3939.5,3939.4,1.814163]
[1758874019772,0.67248,3939.5,3939.4,39.9192]
[1758874019773,1.91918,3939.5,3939.4,39.9192]
[1758874019961,1.91918,3939.5,3938.5,1.18709]
[1758874019962,0.45653,3939.1,3939.0,1.814163]
[1758874020167,1.03234,3939.0,3938.9,5.382263]
[1758874020481,1.03234,3939.0,3938.9,40.4028218]
[1758874020482,1.4788,3939.0,3938.9,40.4028218]
[1758874020677,1.93534,3939.0,3938.9,40.1953]
[1758874020870,1.93534,3939.0,3938.9,0.3603]
[1758874021069,1.93534,3939.0,3938.7,7.48876658]
[1758874021070,1.72887,3938.8,3938.7,0.3603]
[1758874021366,1.72887,3938.8,3938.4,1.814163]
[1758874021367,0.6631,3938.5,3938.4,1.814163]
[1758874021688,0.7325,3938.5,3938.4,40.29261]
[1758874022571,0.526,3938.5,3938.4,40.56921]
[1758874022773,0.526,3938.5,3938.4,40.77083283]
[1758874024268,0.216,3939.5,3939.2,0.45651]
[1758874024484,3.2078,3939.9,3939.7,0.726]
[1758874024779,3.2078,3939.9,3939.8,1.95325]
[1758874025171,0.7559,3940.2,3940.1,1.15902]
[1758874025378,0.7559,3940.2,3940.1,41.55222]
[1758874025881,0.3946,3940.2,3940.1,41.55222]
[1758874026281,0.9269,3940.2,3940.1,41.55222]
[1758874027784,0.9016,3940.2,3940.1,41.55222]
[1758874029286,1.358,3940.2,3940.1,41.0958]
[1758874029486,1.358,3940.2,3940.1,40.5436]
[1758874030886,1.4714,3939.5,3939.4,1.1591]
[1758874031079,3.66424,3939.9,3939.5,0.45648]
[1758874031285,0.5323,3940.1,3939.8,0.7026]
[1758874031479,1.36032,3940.1,3940.0,1.2548]
[1758874031685,1.72162,3940.1,3940.0,0.7026]
[1758874031886,1.2652,3940.1,3940.0,0.7026]
[1758874032084,0.9039,3940.1,3940.0,1.71123]
[1758874032677,0.5323,3940.1,3940.0,1.71123]
[1758874034090,0.9039,3940.1,3940.0,1.71123]
[1758874035395,0.5323,3940.1,3940.0,1.71123]
[1758874037796,0.9039,3940.1,3940.0,1.71123]
[1758874038196,1.36032,3940.1,3940.0,1.71123]
[1758874038386,1.36032,3940.1,3940.0,41.0938]
[1758874038588,0.9039,3940.1,3940.0,41.55023]
[1758874038789,4.1117,3940.4,3940.3,1.71119]
[1758874038988,4.56808,3940.4,3940.3,1.5168]
[1758874039194,4.92938,3940.4,3940.3,0.9646]
[1758874039498,4.92938,3940.4,3940.3,0.6234]
[1758874043197,4.92938,3940.4,3940.3,1.07979]
[1758874043800,4.92938,3940.4,3940.3,0.6234]
[1758874046801,4.92938,3940.4,3940.3,0.262]
[1758874049008,4.92938,3940.4,3939.5,3.2078]
[1758874049009,0.45647,3939.7,3939.5,3.2078]
[1758874049302,1.4714,3939.5,3939.4,0.3614]
[1758874049500,1.4714,3939.5,3939.4,40.1994]
[1758874049897,1.92789,3939.5,3939.4,39.838]
[1758874050090,0.45653,3939.2,3939.0,3.2078]
[1758874050292,0.5376,3939.2,3939.1,40.29453]
[1758874050697,0.5376,3939.2,3939.1,40.81533]
[1758874050905,0.99412,3939.2,3939.1,40.29453]
[1758874051206,0.5376,3939.2,3939.1,40.29453]
[1758874051594,0.5376,3939.2,3939.1,39.838]
[1758874051797,0.99412,3939.2,3939.1,39.838]
[1758874052290,0.9036,3939.1,3938.6,5.021963]
[1758874052492,1.2465,3938.8,3938.7,40.65518]
[1758874052695,1.70307,3938.8,3938.7,0.3586]
[1758874052895,1.70307,3938.8,3938.7,40.1986]
[1758874053096,1.70307,3938.8,3938.7,39.84]
[1758874054806,1.2465,3938.8,3938.7,40.29658]
[1758874055101,1.70307,3938.8,3938.7,40.29658]
[1758874055499,1.70307,3938.8,3938.7,39.84]
[1758874055804,1.2465,3938.8,3938.7,40.29658]
[1758874056003,1.2465,3938.8,3938.7,40.81738]
[1758874056498,3.2078,3939.2,3939.0,0.1069]
[1758874056703,3.2078,3939.6,3939.5,1.67798]
[1758874057005,3.7454,3939.6,3939.5,1.93998]
[1758874057690,0.5722,3940.0,3939.9,0.45644]
[1758874057895,3.66422,3940.1,3940.0,1.67793]
[1758874057896,3.2078,3940.1,3940.0,1.67793]
[1758874058510,3.2078,3940.1,3939.9,0.262]
[1758874058511,0.9036,3940.4,3940.3,1.2215]
[1758874058698,0.9036,3940.4,3940.3,41.5229]
[1758874059295,3.2078,3940.6,3940.4,0.45638]
[1758874059497,3.2078,3940.6,3940.5,1.93987]
[1758874059697,3.2078,3940.6,3940.5,41.62757]
[1758874060008,3.2078,3940.6,3939.8,2.955293]
[1758874060009,0.82244,3939.9,3939.8,1.814163]
[1758874060195,1.1654,3939.4,3939.3,39.582]
[1758874060401,1.703,3939.4,3939.3,39.844]
[1758874060999,1.2465,3939.4,3939.3,39.844]
[1758874061198,0.5376,3939.4,3939.3,40.3066]
[1758874061405,0.5376,3939.5,3939.4,1.1633]
[1758874063604,0.0253,3939.6,3939.5,0.91909]
[1758874063904,0.0253,3939.6,3939.5,1.98869]
[1758874064404,0.0253,3939.6,3939.5,41.1132]
[1758874068707,0.5629,3939.6,3939.5,41.0063]
[1758874069013,0.0253,3939.6,3939.5,41.1132]
[1758874070308,0.5376,3940.0,3939.9,1.1633]
[1758874070499,0.5376,3940.0,3939.9,1.4253]
[1758874070707,0.5376,3940.0,3939.9,1.88174]
[1758874071104,0.99401,3940.2,3940.0,0.4626]
[1758874071314,1.36001,3940.2,3940.1,1.4253]
[1758874071806,0.9036,3940.2,3940.1,1.4253]
[1758874072311,0.9036,3940.2,3940.1,1.88172]
[1758874072502,3.2078,3940.3,3940.2,0.81501]
[1758874072710,3.7454,3940.3,3940.2,1.61971]
[1758874073011,0.5376,3940.3,3940.2,1.61971]
[1758874073908,0.7089,3940.8,3940.7,1.15705]
[1758874074107,3.2078,3940.9,3940.8,0.5208]
[1758874074309,4.03013,3940.9,3940.8,1.2215]
[1758874074503,4.37303,3940.9,3940.8,1.2215]
[1758874075108,4.37303,3940.9,3940.8,41.0615]
[1758874075911,4.91063,3940.9,3940.8,41.0615]
[1758874076610,3.7454,3940.9,3940.5,0.3586]
[1758874076804,4.20173,3940.9,3940.8,38.4754]
[1758874077510,4.20173,3940.9,3940.8,38.7374]
[1758874078712,9.76128363,3940.9,3940.8,38.7374]
[1758874081520,0.86877,3940.5,3940.4,0.5208]
[1758874081820,0.86882,3940.1,3940.0,0.7358]
[1758874082006,4.07662,3940.1,3940.0,40.5738]
[1758874082207,9.07662,3940.1,3940.0,39.838]
[1758874082416,9.63597245,3940.1,3940.0,39.838]
[1758874084211,0.77068,3939.6,3939.5,0.4679]
[1758874084414,4.07668,3939.6,3939.5,0.222]
[1758874084613,9.6415184,3939.6,3939.5,0.222]
[1758874085520,9.6415184,3939.6,3939.5,0.9285]
[1758874085719,9.5433184,3939.6,3939.5,0.9285]
[1758874085913,9.6390184,3939.6,3939.5,0.222]
[1758874088511,4.5433184,3939.6,3939.5,1.6455]
[1758874088817,4.5433184,3939.6,3939.5,7.10199]
[1758874088818,0.21672652,3939.6,3939.5,7.10199]
[1758874089011,3.66419,3940.4,3940.3,1.6683]
[1758874089216,3.2078,3940.4,3940.3,1.9303]
[1758874089512,3.2078,3940.4,3940.3,1.2119]
[1758874089717,3.2078,3940.4,3940.3,41.0569]
[1758874093322,3.2078,3940.4,3940.3,40.7011]
[1758874095125,3.66418,3940.4,3940.3,40.7011]
[1758874096725,3.66418,3940.4,3940.3,41.1575]
[1758874097325,3.66418,3940.4,3940.3,1.6683]
[1758874097635,3.66418,3940.4,3940.3,41.0539]
[1758874101331,0.45642,3940.1,3940.0,0.7065]
[1758874101537,0.45642,3940.1,3940.0,1.6855]
[1758874101726,3.2078,3940.4,3940.3,0.3632]
[1758874101930,3.66418,3940.4,3940.3,1.4739]
[1758874106241,3.2078,3940.4,3940.3,1.9303]
[1758874106439,3.66418,3940.4,3940.3,1.9303]
[1758874106642,3.2078,3940.4,3940.3,1.9303]
[1758874107139,3.66418,3940.4,3940.3,1.9303]
[1758874107340,3.66418,3940.4,3940.3,1.4739]
[1758874108141,3.66418,3940.4,3940.3,0.8581]
[1758874108344,3.66418,3940.4,3940.3,40.7001]
[1758874109640,3.66418,3940.4,3940.3,41.1565]
[1758874109943,3.2078,3940.4,3940.3,41.1565]
[1758874110543,3.68943,3940.9,3940.8,1.66184]
[1758874110744,3.2331,3940.9,3940.8,1.92384]
[1758874110946,3.66413,3940.9,3940.8,1.92384]
[1758874111146,3.66413,3940.9,3940.8,1.4675]
[1758874112851,3.66413,3940.9,3940.8,41.0455]
[1758874113349,3.66413,3940.9,3940.8,41.50184]
[1758874113744,3.66413,3940.9,3940.8,41.0455]
[1758874114850,3.66413,3940.9,3940.8,41.50184]
[1758874115447,3.66413,3940.9,3940.8,1.2055]
[1758874115640,3.66413,3940.9,3940.8,41.0435]
[1758874116244,3.66413,3940.9,3940.8,41.49984]
[1758874116540,3.66413,3940.9,3940.8,1.66184]
[1758874116744,3.66413,3940.9,3940.8,41.49984]
[1758874117256,3.66413,3940.9,3940.8,41.0435]
[1758874117454,0.45633,3940.9,3940.8,41.0435]
[1758874117750,3.66413,3940.9,3940.8,41.0435]
[1758874118150,3.66413,3940.9,3940.8,41.49984]
[1758874118348,3.66413,3940.9,3940.8,41.49884]
[1758874119045,3.66413,3940.9,3940.8,41.0425]
[1758874119751,3.2078,3940.9,3940.8,41.49884]
[1758874119951,0.4563,3941.2,3941.1,1.2137]
[1758874120148,0.4563,3941.2,3941.1,1.4757]
[1758874120349,3.2078,3941.3,3941.1,1.4757]
[1758874120350,3.2078,3941.3,3941.2,1.66999]
[1758874120850,3.66408,3941.3,3941.2,1.66999]
[1758874123956,3.66408,3941.3,3941.2,1.2137]
[1758874124159,3.66408,3941.3,3941.2,41.0477]
[1758874124353,3.66408,3941.3,3941.2,41.50399]
[1758874126558,3.2078,3941.3,3941.2,41.50399]
[1758874127359,3.66408,3941.3,3941.2,41.50399]
[1758874127561,0.45628,3941.3,3941.2,41.50399]
[1758874130164,0.45628,3941.3,3941.2,41.0477]
[1758874130357,0.45628,3941.3,3941.2,41.50399]
[1758874131662,0.45628,3941.3,3941.2,0.515]
[1758874131963,9.21958754,3941.3,3941.2,0.261]
[1758874132665,9.21958754,3941.3,3941.2,0.776]
[1758874138567,9.21958754,3941.3,3941.2,0.515]
[1758874138765,9.21958754,3941.3,3941.2,0.776]
[1758874139066,9.21958754,3941.3,3940.5,0.2167]
[1758874139067,0.6927,3940.6,3940.5,0.9154]
[1758874139266,0.6927,3940.6,3940.5,40.7474]
[1758874139759,1.14906,3940.6,3940.5,40.7474]
[1758874139964,0.80342,3940.1,3940.0,0.9103]
[1758874140167,0.80342,3940.1,3940.0,40.7423]
[1758874140368,3.2078,3940.6,3940.0,40.7423]
[1758874140563,0.45633,3940.9,3940.8,1.14964]
[1758874140761,0.45633,3940.9,3940.8,0.9543]
[1758874140762,1.02183769,3940.9,3940.8,0.9543]
[1758874141164,1.02183769,3940.9,3940.8,1.4708]
[1758874141471,3.2078,3941.0,3940.8,1.4708]
[1758874141472,3.66412,3941.0,3940.9,1.2098]
[1758874141664,3.66412,3941.0,3940.5,0.2159]
[1758874141665,0.45634,3940.8,3940.7,40.0885]
[1758874141860,0.95154,3940.8,3940.7,40.3495]
[1758874142062,0.45634,3940.8,3940.7,40.3495]
[1758874142767,0.95154,3940.8,3940.7,40.3495]
[1758874143668,0.45634,3940.8,3940.7,40.3495]
[1758874145366,0.45634,3940.8,3940.7,40.80585]
[1758874145570,3.2078,3941.0,3940.9,0.6754]
[1758874145766,0.0253,3941.1,3940.9,1.4577]
[1758874146065,0.0253,3941.1,3941.0,1.86712]
[1758874146666,0.0253,3941.1,3941.0,6.86712]
[1758874147264,3.66404,3941.7,3941.6,1.65295]
[1758874147576,3.66404,3941.7,3941.6,1.91395]
[1758874147869,3.66403,3941.7,3941.6,1.91395]
[1758874148065,3.66403,3941.7,3941.6,1.4577]
[1758874149266,4.51273,3941.7,3941.6,1.1967]
[1758874149471,3.99333,3941.7,3941.6,41.0287]
[1758874150674,3.99333,3941.7,3941.6,1.1967]
[1758874150873,3.99333,3941.7,3941.6,41.48395]
[1758874151270,3.99333,3941.7,3941.6,41.0277]
[1758874151870,0.78553,3941.7,3941.6,41.0277]
[1758874156774,0.45623,3941.7,3941.6,41.0277]
[1758874157874,0.45623,3941.7,3941.6,41.48395]
[1758874158281,0.45623,3941.7,3941.6,41.0277]
[1758874161291,0.45623,3941.7,3941.6,41.0247]
[1758874168688,0.45623,3941.7,3941.0,0.2141]
[1758874168689,1.6419,3941.1,3941.0,0.8895]
[1758874168892,1.6419,3941.1,3941.0,40.7165]
[1758874169095,1.6419,3941.1,3941.0,41.2378]
[1758874169488,0.4563,3941.1,3941.0,41.2378]
[1758874169993,0.45629,3941.2,3941.1,1.653]
[1758874172998,0.45629,3941.2,3941.1,41.0247]
[1758874173295,0.45629,3941.2,3941.1,41.481]
[1758874174596,0.45629,3941.2,3941.1,41.0247]
[1758874174786,0.45629,3941.2,3941.1,41.481]
[1758874175701,0.45629,3941.2,3941.1,41.0247]
[1758874176198,0.45629,3941.2,3941.1,41.481]
[1758874178100,0.45628,3941.3,3941.2,0.45628]
[1758874178293,1.0130162,3941.3,3941.2,1.67028]
[1758874178900,0.5567362,3941.3,3941.2,1.67028]
[1758874179106,0.45626,3941.5,3941.4,1.67026]
[1758874179404,0.45626,3941.5,3941.4,1.93126]
[1758874179405,0.55674693,3941.5,3941.4,1.93126]
[1758874179604,0.45626,3941.5,3941.4,1.93126]
[1758874180601,1.01300753,3941.5,3941.4,1.93126]
[1758874181002,0.45626,3941.5,3941.4,1.93126]
[1758874181801,0.48151,3942.0,3941.9,0.45621]
[1758874182007,0.58206069,3942.0,3941.9,1.475]
[1758874182311,0.55676069,3942.0,3941.9,1.475]
[1758874182608,1.01296069,3942.0,3941.9,1.93121]
[1758874182809,1.35396069,3942.0,3941.9,1.93121]
[1758874183016,1.35396069,3942.0,3941.9,1.475]
[1758874184615,1.84926069,3942.0,3941.9,1.475]
[1758874185121,1.84926069,3942.0,3941.9,1.214]
[1758874185320,1.84926069,3942.0,3941.9,41.042]